bitfinex-derivatives/quotes_ETHF0:USTF0_20250212
["timestamp","ask_amount","ask_price","bid_price","bid_amount"]
[1739334903889,1.1993,2586.5,2586.1,0.6077]
[1739334904088,4.839,2586.7,2586.3,3.2078]
[1739334904295,1.754,2586.7,2586.3,3.2078]
[1739334904695,1.754,2586.7,2586.2,0.5843]
[1739334905097,2.99819157,2586.9,2586.3,6.90625051]
[1739334905301,2.99819157,2586.9,2586.4,0.48897319]
[1739334905493,0.06559157,2586.9,2586.6,3.20954412]
[1739334905696,0.06559157,2586.9,2586.7,3.8082]
[1739334906100,0.06559157,2586.9,2586.7,0.6004]
[1739334906401,0.06559157,2586.9,2586.6,40.8]
[1739334907092,0.06559157,2586.9,2586.5,0.00579576]
[1739334907401,1.1556,2586.8,2586.5,0.00579576]
[1739334907600,0.5712,2586.7,2586.5,0.00579576]
[1739334909300,1.752,2586.6,2586.5,0.00579576]
[1739334909596,1.752,2586.6,2585.7,45.19784412]
[1739334909802,3.2078,2586.5,2585.7,45.19784412]
[1739334910003,3.2078,2586.5,2585.8,3.2078]
[1739334910295,1.752,2586.6,2586.1,3.2078]
[1739334910505,1.752,2586.6,2586.2,0.5802]
[1739334911405,1.752,2586.6,2586.1,0.00579576]
[1739334911904,3.2078,2586.5,2586.1,0.00579576]
[1739334912404,6.41734412,2586.2,2585.6,0.00468677]
[1739334912605,1.1814,2586.1,2585.6,0.00468677]
[1739334912903,1.753,2586.0,2585.6,0.00468677]
[1739334914399,6.41734412,2585.9,2585.6,0.00468677]
[1739334915199,3.2078,2585.9,2585.6,0.00468677]
[1739334915905,6.41734412,2585.9,2585.6,0.00468677]
[1739334917197,2.979,2585.8,2584.8,3.2078]
[1739334917406,3.20954412,2585.3,2584.9,40.8]
[1739334917601,0.5771,2585.2,2584.9,40.8]
[1739334917905,0.5771,2585.2,2584.8,3.2078]
[1739334918604,0.5771,2585.2,2584.8,44.0078]
[1739334919003,0.5771,2585.2,2584.8,3.2078]
[1739334919401,3.7849,2585.2,2584.6,1.1368]
[1739334919604,3.7849,2585.2,2584.6,41.9368]
[1739334920507,4.3384,2585.2,2584.6,41.9368]
[1739334922012,1.1306,2585.2,2584.6,41.9368]
[1739334922312,1.755,2585.3,2584.7,0.5576]
[1739334922711,4.96454412,2585.3,2584.6,41.9368]
[1739334923015,3.2078,2585.2,2584.6,1.1368]
[1739334923514,0.6125,2585.1,2584.6,1.1368]
[1739334923715,0.5904,2585.0,2584.6,1.1368]
[1739334923912,1.755,2585.3,2584.6,1.1368]
[1739334924816,1.755,2585.3,2584.8,3.2078]
[1739334925015,1.752,2585.3,2584.8,6.41734412]
[1739334925214,1.752,2585.3,2584.9,0.5956]
[1739334925417,6.1627,2585.5,2584.9,0.5956]
[1739334925616,4.4107,2585.5,2584.9,0.5956]
[1739334925810,4.73679576,2585.6,2585.1,6.41734412]
[1739334926008,4.73679576,2585.6,2585.2,1.1741]
[1739334926413,0.00579576,2585.6,2585.4,3.2078]
[1739334927410,0.00579576,2585.6,2585.4,6.41734412]
[1739334927817,0.00579576,2585.6,2585.5,0.5558]
[1739334928411,0.00579576,2585.6,2585.4,3.2078]
[1739334929012,0.00579576,2585.6,2585.5,40.8]
[1739334930921,1.756,2586.4,2585.5,46.8]
[1739334931119,1.756,2586.4,2585.7,3.2078]
[1739334931323,1.756,2586.4,2585.8,1.1222]
[1739334931516,1.756,2586.4,2585.8,1.7099]
[1739334931713,1.756,2586.4,2586.0,3.2078]
[1739334934022,0.00579576,2586.5,2586.3,3.2078]
[1739334934223,0.00579576,2586.5,2586.4,1.1249]
[1739334934525,0.00579576,2586.5,2586.4,1.6975]
[1739334935921,0.00579576,2586.5,2586.4,42.4975]
[1739334936117,0.00579576,2586.5,2586.4,41.9249]
[1739334936318,0.00579576,2586.5,2586.3,3.2078]
[1739334936521,0.00579576,2586.5,2586.0,1.7778]
[1739334937024,0.00579576,2586.5,2586.2,3.2078]
[1739334939426,0.00579576,2586.5,2586.3,4.10868346]
[1739334940019,0.5755,2587.3,2586.3,10.10868346]
[1739334940225,0.5755,2587.3,2586.8,3.2078]
[1739334940622,0.5755,2587.3,2586.9,0.5872]
[1739334940828,0.6081,2587.4,2586.9,0.5872]
[1739334941231,0.61389576,2587.4,2586.9,0.5872]
[1739334942323,0.61389576,2587.4,2587.0,40.8]
[1739334943231,0.00579576,2587.4,2587.0,40.8]
[1739334944624,0.00579576,2587.4,2587.1,3.2078]
[1739334945031,0.00579576,2587.4,2587.2,0.6102]
[1739334949131,0.00579576,2587.4,2587.1,3.2078]
[1739334951328,0.61499576,2587.4,2587.1,3.2078]
[1739334951531,3.20692483,2587.2,2586.7,3.2078]
[1739334951737,0.5903,2587.1,2586.7,44.0078]
[1739334951927,0.5903,2587.1,2586.7,3.2078]
[1739334956835,3.2078,2586.8,2586.2,40.8]
[1739334957045,3.2078,2586.5,2585.8,3.2078]
[1739334957234,0.6083,2586.4,2585.8,3.2078]
[1739334957436,0.6083,2586.4,2585.8,44.0078]
[1739334957631,0.6083,2586.4,2585.8,47.21472483]
[1739334958243,1.751,2586.6,2585.8,47.21472483]
[1739334959244,1.751,2586.6,2586.1,3.2078]
[1739334959435,1.751,2586.6,2586.2,0.5997]
[1739334959642,2.3291,2587.0,2586.4,3.2078]
[1739334960333,0.5781,2587.0,2586.4,3.2078]
[1739334960540,0.5781,2587.0,2586.7,3.2078]
[1739334960748,0.5781,2587.0,2586.4,6.41472483]
[1739334961548,0.5781,2587.0,2586.7,3.2078]
[1739334963445,4.96459576,2587.4,2586.7,6.41472483]
[1739334963648,4.96459576,2587.4,2586.8,1.07360813]
[1739334963841,4.96459576,2587.4,2586.9,41.9288]
[1739334964144,4.96459576,2587.4,2586.9,41.3737]
[1739334964542,3.21359576,2587.4,2586.9,41.3737]
[1739334967349,3.21359576,2587.4,2586.9,0.5737]
[1739334967742,3.20692483,2587.3,2586.7,3.2078]
[1739334968046,3.81262483,2587.3,2586.7,3.2078]
[1739334968442,6.19259576,2587.4,2586.7,3.2078]
[1739334968747,6.19259576,2587.4,2587.0,3.2078]
[1739334968748,2.98479576,2587.4,2587.0,3.2078]
[1739334968945,2.98479576,2587.4,2587.1,0.5806]
[1739334970435,2.98479576,2587.4,2587.3,3.2078]
[1739334970436,0.00579576,2587.4,2587.3,3.2078]
[1739334970640,0.00579576,2587.4,2587.3,6.90263434]
[1739334970847,4.3263,2588.0,2587.3,6.90263434]
[1739334971050,4.3263,2588.0,2587.3,6.41472483]
[1739334971344,4.3263,2588.0,2587.4,40.8]
[1739334971543,3.2078,2587.7,2587.4,40.8]
[1739334972638,3.2078,2587.7,2587.3,0.00579576]
[1739334973045,3.2078,2587.7,2587.3,40.80579576]
[1739334973346,3.21272059,2587.8,2587.3,0.00579576]
[1739334973548,3.2078,2587.6,2587.3,0.00579576]
[1739334974049,2.3208,2587.5,2587.3,0.00579576]
[1739334974251,2.3208,2587.5,2586.7,3.2078]
[1739334974252,0.6014,2587.4,2586.7,3.2078]
[1739334974549,3.20692483,2587.2,2586.7,3.2078]
[1739334975442,3.20692483,2587.2,2586.7,3.21359576]
[1739334975644,3.2078,2587.3,2586.7,3.21359576]
[1739334976546,6.41472483,2587.3,2586.7,3.21359576]
[1739334977442,3.20692483,2587.0,2586.7,3.21359576]
[1739334977642,2.3383,2586.9,2586.7,0.00579576]
[1739334977848,0.6083,2586.8,2586.7,0.00579576]
[1739334978043,1.751,2586.9,2586.7,0.00579576]
[1739334978450,1.751,2586.9,2586.7,0.59019576]
[1739334982951,1.751,2586.9,2586.7,0.00579576]
[1739334984148,1.751,2586.9,2586.7,0.56649576]
[1739334985354,3.2078,2587.7,2586.8,6.41472483]
[1739334985549,2.9252,2587.7,2586.9,1.10100198]
[1739334985745,2.9252,2587.7,2587.0,0.4879925]
[1739334985944,2.9252,2587.7,2586.9,0.613]
[1739334986150,2.9252,2587.7,2587.0,0.48799004]
[1739334986453,2.9252,2587.7,2586.9,0.613]
[1739334986454,2.9252,2587.7,2587.2,3.2078]
[1739334986654,2.9252,2587.7,2587.3,1.2112]
[1739334987855,0.00579576,2587.8,2587.3,1.2112]
[1739334992560,0.00579576,2587.8,2587.5,3.2078]
[1739334993150,0.00579576,2587.8,2587.6,40.8]
[1739334993758,0.00579576,2587.8,2587.7,0.5705]
[1739334996262,0.00579576,2587.8,2587.6,40.8]
[1739334999763,0.00579576,2587.8,2587.5,3.2078]
[1739335001164,0.00579576,2587.8,2587.5,6.41472483]
[1739335002066,0.00579576,2587.8,2587.4,0.5849]
[1739335002468,0.00579576,2587.8,2587.5,40.8]
[1739335003262,3.2078,2587.7,2587.3,1.2112]
[1739335003464,1.1953,2587.6,2587.0,0.582]
[1739335003764,3.20692483,2587.5,2586.7,0.32036697]
[1739335003956,3.2078,2587.1,2586.7,0.00579576]
[1739335004156,1.1953,2587.0,2586.7,0.00579576]
[1739335004668,3.20692483,2586.9,2586.7,0.00579576]
[1739335005769,1.1953,2587.0,2586.7,0.00579576]
[1739335008065,3.2078,2587.1,2586.8,3.20692483]
[1739335008364,3.2078,2587.1,2586.7,0.00579576]
[1739335008765,2.3055,2587.4,2586.7,0.00579576]
[1739335008966,2.3055,2587.4,2586.7,3.21272059]
[1739335009970,2.3055,2587.4,2586.7,0.00579576]
[1739335013165,3.2078,2587.2,2586.7,0.00579576]
[1739335013869,0.5616,2587.1,2586.7,0.00579576]
[1739335014464,0.5862,2587.0,2586.7,0.00579576]
[1739335014768,0.5862,2587.0,2586.7,3.21272059]
[1739335015169,0.5862,2587.0,2586.7,0.00579576]
[1739335017568,3.2078,2586.9,2586.7,0.00579576]
[1739335017872,0.5719,2586.8,2586.7,0.00579576]
[1739335018872,1.1294,2586.8,2586.7,0.00579576]
[1739335019563,1.1294,2586.8,2586.4,40.8]
[1739335019564,2.8804,2586.8,2586.4,40.8]
[1739335019768,2.8804,2586.8,2586.3,3.2078]
[1739335019977,3.65375,2586.8,2586.3,3.2078]
[1739335020169,3.20692483,2586.6,2586.3,40.8]
[1739335020370,3.20692483,2586.6,2586.0,3.2078]
[1739335020570,0.5648,2586.5,2586.0,3.2078]
[1739335020868,3.7726,2586.5,2586.0,40.80579576]
[1739335021474,3.2078,2586.2,2586.0,40.80579576]
[1739335021681,1.2113,2586.1,2586.0,0.00579576]
[1739335022572,13.2753,2586.1,2585.1,9.47806304]
[1739335022768,3.2078,2585.6,2585.1,9.47806304]
[1739335022971,5.56132483,2585.5,2584.8,4.3256]
[1739335023171,6.13622483,2585.5,2584.9,40.8]
[1739335023378,3.2078,2585.4,2584.9,40.8]
[1739335023975,3.2078,2585.4,2584.5,3.2078]
[1739335024670,3.2078,2585.0,2584.6,40.8]
[1739335025272,2.356,2584.9,2584.6,40.8]
[1739335025882,0.6074,2584.8,2584.6,40.8]
[1739335026083,0.6074,2584.8,2584.5,3.2078]
[1739335026275,4.72115435,2584.8,2584.2,3.2078]
[1739335026475,4.72115435,2584.8,2584.3,40.8]
[1739335027071,4.72115435,2584.8,2584.2,3.2078]
[1739335028181,3.2078,2584.4,2583.9,3.2078]
[1739335028376,1.751,2584.3,2583.9,3.2078]
[1739335028878,3.2078,2584.0,2583.0,4.11375435]
[1739335029090,0.5961,2583.9,2583.0,4.11375435]
[1739335029379,4.70985435,2583.9,2582.9,3.2078]
[1739335029680,4.70985435,2583.9,2582.9,3.51962905]
[1739335029882,3.2078,2583.7,2582.9,3.2078]
[1739335030078,1.752,2583.7,2582.9,3.2078]
[1739335030377,0.00579576,2583.6,2582.9,3.2078]
[1739335030788,0.00579576,2583.6,2583.0,4.11375435]
[1739335031277,0.00579576,2583.6,2583.2,3.2078]
[1739335031481,0.00579576,2583.6,2583.5,3.2078]
[1739335031872,1.752,2584.2,2583.5,9.2078]
[1739335032073,0.575,2584.6,2583.9,40.8]
[1739335032280,1.752,2584.5,2584.0,1.1635]
[1739335033183,1.75779576,2584.5,2584.0,1.1635]
[1739335033481,1.75779576,2584.5,2584.0,0.5825]
[1739335033877,0.00579576,2584.5,2584.1,3.2078]
[1739335034078,0.00579576,2584.5,2584.2,4.11375435]
[1739335034273,0.00579576,2584.5,2584.4,3.2078]
[1739335035278,0.00579576,2584.5,2584.4,9.2078]
[1739335035482,5.5672,2585.5,2584.5,4.11375435]
[1739335035678,5.5672,2585.5,2584.8,3.2078]
[1739335035881,3.2078,2585.2,2584.8,3.2078]
[1739335036082,3.2078,2584.9,2584.3,0.6119]
[1739335036374,0.6074,2584.8,2584.1,3.2078]
[1739335036583,0.6074,2584.8,2584.3,0.00579576]
[1739335037975,0.00579576,2584.9,2584.5,3.2078]
[1739335038174,0.00579576,2584.9,2584.6,0.6119]
[1739335038680,0.00579576,2584.9,2584.5,3.2078]
[1739335040286,0.00579576,2584.9,2584.6,0.5689]
[1739335040691,0.00579576,2584.9,2584.6,1.1699]
[1739335040884,0.00579576,2584.9,2584.8,3.2078]
[1739335042089,0.00579576,2584.9,2584.6,0.5689]
[1739335042387,0.00579576,2584.9,2584.5,3.2078]
[1739335042588,1.75779576,2584.9,2584.5,3.2078]
[1739335043088,3.2078,2584.7,2584.3,0.00579576]
[1739335043287,0.5824,2584.6,2584.3,0.00579576]
[1739335043985,3.2078,2584.4,2584.3,0.00579576]
[1739335045187,0.5824,2584.6,2584.3,0.00579576]
[1739335046089,0.568,2584.8,2584.4,3.2078]
[1739335046891,3.2078,2584.7,2584.3,0.00579576]
[1739335047089,0.574,2584.6,2584.3,0.00579576]
[1739335047486,3.2078,2584.7,2584.3,0.00579576]
[1739335047882,0.568,2584.8,2584.3,0.00579576]
[1739335048989,1.75779576,2584.9,2584.3,0.00579576]
[1739335049186,1.75779576,2584.9,2584.3,0.57909576]
[1739335049392,3.2078,2584.6,2584.3,0.00579576]
[1739335049789,4.11375435,2584.5,2584.3,0.00579576]
[1739335049988,0.5745,2584.4,2584.3,0.00579576]
[1739335051491,6.5745,2584.4,2584.3,0.00579576]
[1739335051793,6.64020442,2584.4,2583.8,40.8]
[1739335051991,3.2078,2584.2,2583.4,0.5791]
[1739335052390,3.2078,2583.9,2583.4,40.8]
[1739335052590,0.5581,2583.8,2583.4,40.8]
[1739335052892,0.5581,2583.8,2583.4,40.80579576]
[1739335053098,1.1459,2583.8,2583.4,40.80579576]
[1739335053397,1.1459,2583.8,2583.4,0.00579576]
[1739335053595,1.76,2583.7,2583.4,0.00579576]
[1739335055497,1.76,2583.7,2583.4,0.56699576]
[1739335055692,1.76,2583.7,2583.4,1.14899576]
[1739335056399,1.76,2583.7,2583.4,0.00579576]
[1739335056695,2.3698,2583.7,2583.4,0.00579576]
[1739335056890,3.2078,2583.6,2583.4,0.00579576]
[1739335057097,3.2078,2583.6,2582.7,7.90065435]
[1739335057098,7.32155435,2583.6,2582.7,3.2078]
[1739335057298,7.32155435,2583.6,2581.2,1.93756]
[1739335057299,0.77495,2581.5,2580.2,15.03903471]
[1739335057490,3.2078,2580.6,2580.2,15.03903471]
[1739335057688,3.2078,2581.0,2580.4,3.2078]
[1739335057887,5.0118,2581.3,2581.0,1.19034383]
[1739335058190,3.2078,2581.3,2580.8,4.11375435]
[1739335058494,1.813,2581.6,2580.5,0.77523]
[1739335058495,0.00580754,2581.4,2581.2,1.19034383]
[1739335058689,3.2078,2582.0,2581.4,0.77496]
[1739335058992,3.2078,2582.0,2581.3,4.39814383]
[1739335058993,3.2078,2582.8,2581.9,4.11375435]
[1739335059299,3.2078,2582.3,2582.1,1.19034383]
[1739335059904,9.2078,2582.3,2581.1,0.5889]
[1739335060199,3.2078,2581.5,2581.4,1.19034383]
[1739335060395,3.2078,2581.5,2581.0,6.88233964]
[1739335060594,3.2078,2582.2,2581.4,1.19034383]
[1739335060787,3.2078,2582.2,2581.5,4.11375435]
[1739335060993,3.2078,2582.2,2582.1,1.19034383]
[1739335061193,3.2078,2582.2,2582.1,5.30409818]
[1739335061897,3.2078,2582.2,2582.1,46.10409818]
[1739335063299,0.00580754,2582.5,2582.1,46.10409818]
[1739335063598,0.00580754,2582.5,2582.4,1.19034383]
[1739335065104,0.00580754,2582.5,2582.1,40.8]
[1739335065307,3.2078,2582.3,2581.8,0.5617]
[1739335065502,3.2078,2582.3,2582.2,1.19034383]
[1739335066004,0.00580754,2582.5,2582.2,1.19034383]
[1739335066311,0.00580754,2582.5,2582.4,1.19034383]
[1739335067207,0.00580754,2582.5,2582.4,41.99034383]
[1739335068097,0.00580754,2582.5,2582.0,3.2078]
[1739335068312,0.00580754,2582.5,2582.1,1.19034383]
[1739335068506,3.2078,2582.2,2582.0,1.19034383]
[1739335068804,3.2078,2582.2,2581.2,7.32155435]
[1739335069012,3.2078,2581.8,2581.5,1.19034383]
[1739335069908,3.2078,2581.8,2581.0,6.28613964]
[1739335070104,3.2078,2581.8,2581.5,1.19034383]
[1739335070302,3.2078,2581.8,2581.3,1.19034383]
[1739335070606,1.86,2581.9,2581.3,1.19034383]
[1739335070607,3.2078,2581.5,2581.3,1.19034383]
[1739335071206,3.2078,2581.8,2581.4,1.19034383]
[1739335071412,3.2078,2581.8,2581.6,1.19034383]
[1739335071904,3.2078,2581.8,2581.3,0.5686]
[1739335072206,3.2078,2581.8,2581.7,1.19034383]
[1739335072510,3.085,2582.1,2581.7,1.19034383]
[1739335072708,3.2078,2582.2,2582.0,1.19034383]
[1739335072917,3.2078,2582.2,2582.1,1.19034383]
[1739335073205,3.21360754,2582.5,2582.1,1.19034383]
[1739335073406,3.21360754,2582.5,2582.4,1.19034383]
[1739335073912,3.21360754,2582.5,2582.1,40.8]
[1739335074206,3.2078,2582.2,2582.1,40.8]
[1739335074608,3.2078,2582.2,2581.4,0.5897]
[1739335074817,3.2078,2581.9,2581.7,1.19034383]
[1739335075007,3.2078,2581.9,2581.7,41.99034383]
[1739335075611,3.2078,2581.9,2581.7,1.19034383]
[1739335076310,1.865,2581.8,2581.4,40.8]
[1739335076505,3.2078,2581.5,2581.4,1.19034383]
[1739335076707,3.2078,2581.5,2581.1,0.6041]
[1739335077012,3.2078,2581.5,2581.4,1.19034383]
[1739335077805,3.2078,2581.5,2581.2,40.8]
[1739335078100,3.2078,2581.5,2581.1,0.6041]
[1739335078101,3.2078,2581.5,2581.3,1.19034383]
[1739335078307,3.2078,2581.5,2581.0,1.19615137]
[1739335078504,4.11375435,2581.6,2581.0,1.19615137]
[1739335078505,3.2078,2581.2,2581.0,1.19615137]
[1739335078908,3.2078,2581.2,2581.1,1.19034383]
[1739335079307,3.2078,2581.5,2581.1,1.19034383]
[1739335079508,3.2078,2581.2,2581.1,1.19034383]
[1739335079709,3.2078,2581.2,2581.0,0.00580754]
[1739335079912,3.2078,2581.2,2581.0,1.19615137]
[1739335080620,3.2078,2581.5,2581.1,1.19034383]
[1739335080819,3.2078,2581.5,2581.1,3.7676]
[1739335081017,3.2078,2581.5,2581.4,1.19034383]
[1739335082012,3.2078,2582.1,2581.4,7.19034383]
[1739335082210,3.2078,2582.1,2582.0,1.19034383]
[1739335082411,3.2078,2582.1,2581.9,1.19034383]
[1739335082809,3.2078,2582.1,2582.0,1.19034383]
[1739335083008,1.877,2582.4,2582.0,1.19034383]
[1739335083211,1.877,2582.4,2581.5,4.11375435]
[1739335083212,4.967,2582.3,2582.2,1.19034383]
[1739335083417,1.882,2582.3,2581.1,0.5598]
[1739335083613,1.882,2582.3,2581.1,1.19034383]
[1739335083614,3.2078,2581.5,2581.1,1.19034383]
[1739335083808,3.2078,2581.2,2581.0,0.00580754]
[1739335084209,3.2078,2581.2,2580.0,24.39475435]
[1739335084413,4.11375435,2581.0,2580.4,1.19034383]
[1739335084609,3.2078,2580.5,2580.2,1.19034383]
[1739335084814,3.2078,2580.5,2580.0,0.5897]
[1739335085017,3.2078,2580.5,2579.7,0.5988]
[1739335085018,3.2078,2580.5,2580.1,1.19034383]
[1739335085511,3.2078,2580.2,2579.6,40.8]
[1739335085713,3.2078,2579.9,2579.6,41.99034383]
[1739335085917,3.2078,2579.9,2579.2,0.5897]
[1739335086118,3.2078,2579.7,2578.8,20.291]
[1739335086415,3.2078,2579.7,2578.5,4.11375435]
[1739335086416,3.2078,2579.4,2578.5,40.8]
[1739335086617,3.2078,2578.9,2578.5,40.8]
[1739335087122,0.00580754,2579.0,2578.8,7.32155435]
[1739335087512,0.00580754,2579.0,2578.9,0.5994]
[1739335088612,3.2078,2579.8,2578.9,6.5994]
[1739335088807,3.2078,2580.1,2579.5,3.2078]
[1739335089010,3.2078,2580.1,2579.4,3.2078]
[1739335089213,3.2078,2580.4,2579.7,3.2078]
[1739335089610,3.2078,2580.4,2579.8,0.5994]
[1739335089817,0.00580754,2580.3,2580.1,3.2078]
[1739335090318,3.2078,2581.0,2580.1,9.2078]
[1739335090515,5.1218,2581.3,2580.7,3.2078]
[1739335090715,3.7894,2581.7,2580.7,3.2078]
[1739335090914,3.7894,2581.7,2581.1,3.2078]
[1739335090915,3.2078,2581.7,2581.1,3.2078]
[1739335091315,5.1238,2582.0,2581.1,3.2078]
[1739335091714,0.00580754,2581.7,2581.4,3.2078]
[1739335094616,3.2078,2581.5,2581.1,0.00580754]
[1739335096919,3.2078,2581.2,2581.1,0.00580754]
[1739335097225,3.2078,2581.2,2580.0,5.3707307]
[1739335097226,8.2068,2581.2,2579.4,3.2078]
[1739335097417,3.2078,2580.2,2579.4,3.2078]
[1739335097617,1.933,2580.1,2579.4,3.2078]
[1739335098419,0.00580754,2580.0,2579.5,0.00580754]
[1739335099518,3.2078,2579.9,2579.5,0.00580754]
[1739335101225,3.2078,2579.6,2579.5,0.00580754]
[1739335102332,3.2078,2579.6,2579.1,40.80590933]
[1739335102632,1.928,2579.5,2579.1,40.80590933]
[1739335103833,3.2078,2579.3,2579.1,40.80590933]
[1739335104432,3.2078,2579.3,2579.1,0.00590933]
[1739335110435,3.2078,2579.6,2579.1,0.00590933]
[1739335110929,1.917,2579.9,2579.2,40.8]
[1739335111331,1.917,2579.9,2579.3,0.5641]
[1739335111332,3.2078,2579.7,2579.3,0.5641]
[1739335112541,1.917,2579.9,2579.4,3.2078]
[1739335112725,0.00580754,2580.0,2579.7,3.2078]
[1739335113234,0.00580754,2580.0,2579.8,0.59]
[1739335113634,1.914,2580.7,2579.8,6.59]
[1739335113635,3.2078,2580.7,2579.8,6.59]
[1739335113834,3.2078,2580.7,2580.0,3.2078]
[1739335114838,0.00580754,2580.6,2580.1,0.00580754]
[1739335117039,0.00580754,2580.6,2580.1,0.61400754]
[1739335117732,0.00580754,2580.6,2580.3,3.2078]
[1739335119939,0.00580754,2580.6,2580.4,40.8]
[1739335120238,0.00580754,2580.6,2580.1,0.61400754]
[1739335120738,0.00580754,2580.6,2580.2,44.0078]
[1739335121737,0.00580754,2580.6,2580.2,44.567]
[1739335123038,3.2078,2581.4,2580.5,3.2078]
[1739335123639,3.2078,2581.1,2580.5,3.2078]
[1739335124041,3.21360754,2581.1,2580.5,3.2078]
[1739335124945,0.00580754,2581.1,2580.5,3.2078]
[1739335126444,3.2078,2581.0,2580.2,46.468]
[1739335128138,0.00580754,2581.1,2580.5,3.2078]
[1739335129248,0.00580754,2581.1,2580.6,0.6097]
[1739335129643,0.00580754,2581.1,2580.7,0.5775]
[1739335132345,3.085,2582.1,2580.7,0.5775]
[1739335132346,3.2078,2581.9,2580.9,4.12453075]
[1739335132646,7.33233075,2582.3,2581.3,3.2078]
[1739335132846,3.2078,2582.3,2581.4,40.8]
[1739335133240,3.2078,2582.3,2581.4,41.3777]
[1739335133443,17.6251135,2584.9,2584.1,3.2078]
[1739335133641,3.2078,2585.9,2584.8,8.2490615]
[1739335133841,3.2078,2585.9,2585.7,4.12453075]
[1739335134043,3.2078,2585.9,2585.6,3.37148588]
[1739335134245,0.00580754,2585.6,2585.1,0.00580754]
[1739335134439,3.2078,2585.3,2584.8,3.2078]
[1739335134645,2.196,2585.4,2584.8,3.2078]
[1739335135053,3.2078,2585.3,2584.8,3.2078]
[1739335135252,2.196,2585.4,2584.1,3.2078]
[1739335135253,4.12453075,2584.9,2584.1,3.2078]
[1739335135547,4.12453075,2584.6,2583.7,3.2078]
[1739335135749,3.2078,2584.4,2584.2,0.00580754]
[1739335135955,4.57973754,2584.3,2583.7,3.2078]
[1739335136449,7.78753754,2583.9,2582.9,3.7959]
[1739335136746,2.194,2583.8,2583.3,3.2078]
[1739335137139,2.19980754,2583.8,2583.3,0.00580754]
[1739335138555,0.00580754,2583.8,2583.5,3.2078]
[1739335140354,0.00580754,2583.8,2583.3,0.00580754]
[1739335141450,0.00580754,2583.8,2583.5,3.2078]
[1739335141951,0.00580754,2583.8,2583.6,0.59722715]
[1739335142149,2.178,2584.7,2583.6,1.18232715]
[1739335142356,2.178,2584.7,2584.2,3.2078]
[1739335142561,2.18,2585.0,2584.5,3.2078]
[1739335142756,4.3438,2585.3,2584.8,3.2078]
[1739335142952,3.7989,2585.3,2584.8,3.2078]
[1739335143349,3.7989,2585.3,2584.8,0.00580754]
[1739335143350,3.2078,2585.3,2584.8,0.00580754]
[1739335143554,0.00580754,2585.3,2584.8,0.00580754]
[1739335143854,0.00580754,2585.3,2584.9,3.2078]
[1739335144455,0.00580754,2585.3,2585.0,3.2078]
[1739335145052,2.18980754,2585.3,2584.8,0.00580754]
[1739335145254,3.2078,2585.2,2584.8,0.00580754]
[1739335145450,3.791,2585.2,2584.8,0.00580754]
[1739335146453,4.57973754,2585.1,2584.8,0.00580754]
[1739335148250,3.2078,2584.9,2584.8,0.00580754]
[1739335149151,3.2078,2584.9,2583.7,0.1974479]
[1739335149152,12.2928,2584.9,2583.7,3.2078]
[1739335149355,3.2078,2584.4,2583.7,3.2078]
[1739335150457,2.167,2584.5,2583.8,0.00580754]
[1739335150851,3.2078,2584.4,2583.8,0.60030754]
[1739335151561,3.2078,2584.4,2583.8,41.40030754]
[1739335152461,3.2078,2584.4,2583.8,0.00580754]
[1739335152655,3.2078,2584.1,2583.8,0.00580754]
[1739335153759,6.064,2584.4,2583.8,0.00580754]
[1739335155557,6.064,2584.4,2583.9,0.59677582]
[1739335155760,6.064,2584.4,2583.9,1.19797582]
[1739335155960,6.064,2584.4,2584.0,1.17117582]
[1739335156157,0.5851,2584.8,2584.0,4.37897582]
[1739335156355,0.5851,2584.8,2584.0,1.17117582]
[1739335156753,0.5851,2584.8,2584.1,0.59677582]
[1739335157664,0.5851,2584.8,2584.2,0.59677582]
[1739335157964,6.1868,2585.2,2584.4,3.2078]
[1739335158660,6.1868,2585.2,2584.5,40.8]
[1739335159056,6.1868,2585.2,2584.6,1.5531978]
[1739335159255,3.2078,2585.2,2584.6,1.5531978]
[1739335159454,3.2078,2585.2,2584.7,0.6008]
[1739335159760,0.00580754,2585.3,2585.0,4.57973754]
[1739335159956,5.14483754,2587.4,2585.1,6.44350867]
[1739335160262,3.2078,2587.2,2586.1,3.2078]
[1739335160465,3.2078,2587.2,2586.4,3.2078]
[1739335161264,0.00580754,2587.1,2586.5,0.50429059]
[1739335161564,0.00580754,2587.1,2586.5,1.55900534]
[1739335162364,0.00580754,2587.1,2586.6,1.5531978]
[1739335162859,0.00580754,2587.1,2586.7,1.5531978]
[1739335163060,0.00580754,2587.1,2586.7,4.7609978]
[1739335163255,0.00580754,2587.1,2586.8,0.95642198]
[1739335163560,0.00580754,2587.1,2586.8,1.5531978]
[1739335164166,0.00580754,2587.1,2586.9,1.5531978]
[1739335164759,0.00580754,2587.1,2586.5,0.00580754]
[1739335165564,3.2078,2586.9,2586.5,0.00580754]
[1739335165756,3.2078,2586.9,2586.6,0.58507831]
[1739335166163,3.2078,2586.9,2586.5,0.00580754]
[1739335167057,3.2078,2586.6,2586.5,0.00580754]
[1739335167365,3.2078,2586.6,2585.2,0.96976164]
[1739335167366,3.2078,2586.6,2585.5,3.2078]
[1739335167559,3.2078,2586.2,2585.3,1.1605]
[1739335167755,3.2078,2586.5,2585.8,3.2078]
[1739335167961,3.2078,2586.9,2586.1,3.2078]
[1739335168358,3.2078,2586.9,2586.2,0.00580754]
[1739335168761,3.2078,2586.9,2586.3,0.58505789]
[1739335169765,3.2078,2586.9,2586.4,0.58505789]
[1739335170265,0.00580754,2587.1,2586.6,3.2078]
[1739335171068,0.00580754,2587.1,2586.7,0.58505789]
[1739335171762,0.00580754,2587.1,2586.8,40.8]
[1739335173269,0.00580754,2587.1,2586.9,3.7713]
[1739335174871,0.00580754,2587.1,2586.9,3.2078]
[1739335175563,0.00580754,2587.1,2586.5,3.2078]
[1739335175961,0.00580754,2587.1,2586.4,0.5985]